[Event "Chinese League Div-A Rapid 2022"]
[Site "Fuling,Chongqing"]
[Date "2022.09.11"]
[Round "5.11"]
[White "Ding, Liren"]
[Black "Wang, Hao B"]
[Result "1-0"]
[ECO "B90"]
[WhiteElo "2808"]
[BlackElo "2165"]
[Annotator "TA"]
[PlyCount "71"]
[EventDate "2022.09.07"]
[EventType "team-tourn"]
[EventCountry "CHN"]
[SourceTitle "playchess.com"]
[Source "ChessBase"]
[SourceQuality "1"]
[TimeControl "1500+10"]

{[%evp 11,71,27,41,29,32,42,50,46,52,51,99,69,77,72,69,72,71,53,52,47,71,52,56,72,67,67,73,66,62,71,66,55,58,50,69,49,94,102,91,91,136,148,208,208,260,261,193,0,493,498,494,490,478,481,482,470,537,500,474,454,1761,1460]} 1. e4 {[%emt 0:00:03]} c5 {[%emt 0:00:05]} 2. Nf3 {[%emt 0:00:01]} d6 {[%emt 0:00:05]} 3. d4 {[%emt 0:00:01]} cxd4 {[%emt 0:00:04]} 4. Nxd4 {[%emt 0:00:02]} Nf6 {[%emt 0:00:05]} 5. Nc3 {[%emt 0:00:02]} a6 {[%emt 0:00:08]} 6. h3 {[%emt 0:00:02]} Nc6 {[%emt 0:00:19]} 7. g4 {[%emt 0:00:02][%cal Bg2g4,Bg4g5][%mdl 32] B90: Sicilian Najdorf: Unusual White 6th moves, 6 Be3 Ng4 and 6 Be3 e5.} e6 {[%emt 0:00:32]} 8. g5 {[%emt 0:00:10]} Nd7 {[%emt 0:00:24]} 9. Be3 {[%emt 0:00:03] White is slightly better.} Be7 {[%emt 0:00:27]} 10. h4 {[%emt 0:00:02][%cal Bh3h4,Bh4h5][%mdl 32]} Qc7 {[%emt 0:02:02]} (10... O-O $14) 11. h5 {[%emt 0:00:20]} b5 {[%emt 0:01:12][%cal Bb7b5,Bb5b4][%mdl 32]} 12. Nxc6 {[%emt 0:00:42]} Qxc6 {[%emt 0:00:05]} 13. Qd4 {[%emt 0:00:02]} Rg8 {[%emt 0:03:39][%cal Oh7h6] [#]} 14. O-O-O $146 {[%emt 0:01:43]} ({Predecessor:} 14. a4 b4 15. Qxb4 Rb8 16. Qc4 Qa8 17. Rb1 Ne5 18. Qe2 Qc6 19. Bd2 Rb4 20. Rh3 {1-0 (39) Zhang,P (2360)-Wang,P (2380) Beijing 1997}) 14... Rb8 {[%emt 0:00:18]} 15. Kb1 {[%emt 0:00:44]} b4 {[%emt 0:00:25]} 16. Ne2 {[%emt 0:00:02]} Nc5 {[%emt 0:00:30]} 17. f3 {[%emt 0:01:22]} e5 {[%emt 0:01:01]} 18. Qd2 {[%emt 0:00:01]} Be6 {[%emt 0:01:06]} 19. Nc1 {[%emt 0:02:32]} a5 {[%emt 0:00:18]} 20. Nb3 {[%emt 0:01:14]} a4 {[%emt 0:02:27]} 21. Nxc5 {[%emt 0:00:02]} dxc5 {[%emt 0:00:03]} 22. Qh2 {[%emt 0:00:01]} f6 {[%emt 0:00:48]} 23. Bh3 {[%emt 0:00:34]} c4 {[%emt 0:02:25]} 24. Bxe6 {[%emt 0:03:05]} Qxe6 {[%emt 0:00:02]} 25. h6 $1 {[%emt 0:00:06]} g6 {[%emt 0:01:13]} 26. gxf6 $1 {[%emt 0:00:08] White is more active.} Bxf6 {[%emt 0:00:02]} (26... Qxf6 $16 {was necessary.} 27. Rd5 Kf7) 27. Bc5 $1 $18 {[%emt 0:00:40] aiming for Rd6.} Kf7 {[%emt 0:02:12]} 28. Rd6 {[%emt 0:00:06]} Qc8 {[%emt 0:00:02] [#]} 29. Bd4 {[%emt 0:00:14]} Re8 $2 {[%emt 0:00:25][%mdl 8192] [#]} (29... exd4 $2 30. Qf4 Qd8 31. Rxd8 Rgxd8 32. e5 $18) (29... Rb5 $1 $11) 30. Rxf6+ $1 {[%emt 0:00:10][%mdl 512] White is clearly winning.} Kxf6 {[%emt 0:00:02]} 31. Qf4+ $1 {[%emt 0:00:01]} Ke7 {[%emt 0:00:05]} 32. Qxe5+ {[%emt 0:00:11]} ({Less strong is} 32. Bxe5 Rb6 $14) 32... Qe6 {[%emt 0:00:19] Strongly threatening ...Qxe5.} 33. Qg7+ {[%emt 0:04:16]} (33. Qc7+ Qd7 34. Qe5+ Qe6 $18) 33... Kd6 {[%emt 0:02:56]} 34. Rd1 {[%emt 0:00:02]} Kc6 {[%emt 0:00:06] And now ...Rb7 would win.} 35. Qa7 {[%emt 0:00:02] Intending Bf2 and mate.} Kb5 {[%emt 0:01:54]} (35... Qd6 $142 36. Rd2 (36. Qxa4+ Kb7 $18) 36... Red8) 36. Be3 {[%emt 0:00:51] Weighted Error Value: White=0.11 (very precise) /Black=0.34} 1-0

[Event "Chinese League Div-A Rapid 2022"]
[Site "Fuling,Chongqing"]
[Date "2022.09.11"]
[Round "5.12"]
[White "Lu, Shanglei"]
[Black "Pang, Tao"]
[Result "1-0"]
[ECO "C02"]
[WhiteElo "2616"]
[BlackElo "2427"]
[Annotator "TA"]
[PlyCount "83"]
[EventDate "2022.09.07"]
[EventType "team-tourn"]
[EventCountry "CHN"]
[SourceTitle "playchess.com"]
[Source "ChessBase"]
[SourceQuality "1"]
[TimeControl "1500+10"]

{[%evp 18,83,16,14,19,12,26,16,33,21,26,0,0,0,0,0,0,0,0,0,0,0,0,0,0,0,11,7,119,125,103,114,177,159,564,556,548,552,538,525,601,597,556,592,583,558,522,503,722,609,790,783,754,755,933,886,1032,858,787,941,1096,965,2216,1861,6789,6250,29971,29971]} 1. e4 {[%emt 0:00:02]} e6 {[%emt 0:00:00]} 2. d4 {[%emt 0:00:02]} d5 {[%emt 0:00:01]} 3. e5 {[%emt 0:00:03]} c5 {[%emt 0:00:02]} 4. c3 {[%emt 0:00:01]} Bd7 {[%emt 0:00:01]} 5. Nf3 {[%emt 0:00:07]} Qb6 {[%emt 0:00:32]} 6. Be2 {[%emt 0:00:03]} cxd4 {[%emt 0:00:24]} 7. cxd4 {[%emt 0:00:14]} Bb5 {[%emt 0:00:01]} 8. Nc3 {[%emt 0:01:06]} Bxe2 {[%emt 0:00:07]} 9. Qxe2 {[%emt 0:00:03]} Nc6 {[%emt 0:00:16]} 10. O-O {[%emt 0:00:02]} Nge7 {[%emt 0:00:27] C02: French: Advance Variation.} (10... Nxd4 $2 11. Nxd4 a6 12. Be3 $18) 11. Qd3 {[%emt 0:00:23]} Qd8 {[%emt 0:00:44] [#]} 12. a3 $146 {[%emt 0:03:26]} ({Predecessor:} 12. Bg5 h6 13. Nb5 hxg5 14. Nd6+ Kd7 15. Nxf7 Qe8 16. Nxh8 Qh5 17. Rac1 g4 18. Nd2 {½-½ (33) Hendriks,W (2378)-Peng,Z (2403) Amsterdam 2000}) 12... Nf5 {[%emt 0:00:27] The position is equal.} 13. b4 {[%emt 0:00:02]} Be7 {[%emt 0:00:34]} 14. Ra2 {[%emt 0:01:22]} O-O {[%emt 0:00:11]} 15. g4 {[%emt 0:00:09]} Nh4 {[%emt 0:00:02]} 16. Nxh4 {[%emt 0:00:03]} Bxh4 {[%emt 0:00:01]} 17. f4 {[%emt 0:00:08]} f6 {[%emt 0:02:43]} 18. b5 {[%emt 0:01:33]} Na5 {[%emt 0:01:09]} 19. exf6 {[%emt 0:01:30]} Bxf6 {[%emt 0:00:15]} 20. g5 {[%emt 0:00:28]} Be7 {[%emt 0:00:04]} 21. Re2 $36 {[%emt 0:00:50][%mdl 2048] White has some pressure.} Qd7 {[%emt 0:01:16]} 22. Qe3 {[%emt 0:05:03]} Rae8 {[%emt 0:02:36]} (22... Rac8 $11 {keeps the balance.}) 23. Qxe6+ $16 {[%emt 0:00:40]} Qxe6 {[%emt 0:00:01]} 24. Rxe6 {[%emt 0:00:01] [#] aiming for Rfe1.} Nb3 {[%emt 0:02:37]} (24... Kf7 $16 {was necessary.} 25. Rfe1 Bd6 26. Rxe8 Rxe8 27. Rxe8 Kxe8) 25. Nxd5 $18 {[%emt 0:03:14]} Nxc1 $2 {[%emt 0:01:38] Loses the game.} (25... Bd8 $16 {is more resistant.} 26. Rxe8 Rxe8) 26. Nxe7+ {[%emt 0:02:16]} Kf7 {[%emt 0:00:01]} 27. Rfe1 {[%emt 0:00:01]} Nd3 {[%emt 0:00:34]} 28. R1e3 {[%emt 0:01:02]} g6 {[%emt 0:04:07]} 29. Rf6+ {[%emt 0:01:04]} Kg7 {[%emt 0:00:00]} 30. Rxf8 {[%emt 0:00:04]} (30. Rxd3 Rxe7 31. Rxf8 Kxf8 $18) 30... Kxf8 {[%emt 0:00:04]} 31. Nxg6+ {[%emt 0:00:02]} ({Not} 31. Rxd3 Rxe7 32. Kf2 Rd7 $18) 31... hxg6 {[%emt 0:00:01]} 32. Rxd3 {[%emt 0:00:02][%mdl 4096] [#] Endgame Strongly threatening d5. KR-KR} Re2 {[%emt 0:00:35]} 33. Rc3 {[%emt 0:00:41]} Rd2 {[%emt 0:01:05]} 34. Rc8+ {[%emt 0:00:08]} Ke7 {[%emt 0:00:01]} 35. Rc7+ {[%emt 0:00:01]} Ke6 {[%emt 0:00:00]} 36. Rxb7 {[%emt 0:00:02]} Kf5 {[%emt 0:00:05]} 37. Rxa7 {[%emt 0:00:17]} Ke4 {[%emt 0:00:50]} 38. Rc7 {[%emt 0:00:28]} Rb2 {[%emt 0:00:14]} 39. a4 {[%emt 0:00:12][%cal Ba3a4,Ba4a5,Ba5a6][%mdl 32]} Rb4 {[%emt 0:00:02]} 40. f5 {[%emt 0:01:41]} Kxf5 {[%emt 0:00:06]} 41. a5 {[%emt 0:00:03]} Kxg5 {[%emt 0:01:39]} 42. a6 {[%emt 0:00:17] Weighted Error Value: White=0.08 (flawless) /Black=0.61} 1-0

[Event "Chinese League Div-A Rapid 2022"]
[Site "Fuling,Chongqing"]
[Date "2022.09.11"]
[Round "5.13"]
[White "Chen, Yuan"]
[Black "Ma, Zhonghan"]
[Result "0-1"]
[ECO "B02"]
[WhiteElo "2138"]
[BlackElo "2485"]
[Annotator "TA"]
[PlyCount "200"]
[EventDate "2022.09.07"]
[EventType "team-tourn"]
[EventCountry "CHN"]
[SourceTitle "playchess.com"]
[Source "ChessBase"]
[SourceQuality "1"]
[TimeControl "1500+10"]

{[%evp 15,200,1,4,-24,21,-20,-32,-37,0,0,0,-12,-14,-35,-26,-27,-19,-18,-24,-25,-21,-35,-36,-39,-41,-35,-44,-88,-88,-88,-89,-89,-89,-91,-79,-75,-77,-98,-98,-155,-115,-113,-98,-146,-98,-123,-139,-181,-91,-99,-81,-188,-195,-195,-191,-195,-181,-263,-217,-217,-217,-217,-217,-217,-198,-600,-198,-600,-600,-600,-600,-600,-593,-593,-593,-593,-585,-585,-578,-578,-566,-578,-568,-560,-549,-553,-515,-508,-508,-489,-463,-560,-553,-545,-545,-608,-545,-29967,-29968,-29969,-29970,-29970,-29970,-29969,-29971,-29971,-29971,-29971,-29972,-29973,-29974,-29974,-29975,-29975,-29975,-29975,-29974,-29974,0,-29975,-29975,-29975,-29976,-29977,-29976,-29975,-29965,-5844,0,-29975,0,-29966,0,-29975,0,-29974,-29972,-29972,-29968,-29967,-29970,-29977,-29978,-29980,-29981,-29981,-29975,-29975,-29976,-29976,-29977,-29977,-29978,-29977,-29974,-29967,0,-29977,-5691,-1739,0,-29979,-29980,-29980,-29981,-29981,-29982,-29982,-29983,-29983,-29984,-29984,-29985,-29985,-29986,-29988,-29989,-29989,-29984,-29984,-29985,-29995,-29992,-29992,-29986,-29998,-29999]} 1. e4 {[%emt 0:00:01]} d5 {[%emt 0:00:01]} 2. exd5 {[%emt 0:01:15]} Nf6 {[%emt 0:00:02]} 3. d4 {[%emt 0:00:10]} Nxd5 {[%emt 0:00:02]} 4. Nf3 {[%emt 0:00:09]} g6 {[%emt 0:00:24]} 5. Nc3 {[%emt 0:00:26]} Nxc3 {[%emt 0:01:11]} 6. bxc3 {[%emt 0:00:02]} Bg7 {[%emt 0:00:01]} 7. Bc4 {[%emt 0:00:24]} O-O {[%emt 0:00:03]} 8. O-O {[%emt 0:00:01]} c5 {[%emt 0:00:09]} 9. Bg5 {[%emt 0:02:39] B02: Alekhine's Defence: Chase Variation and lines with early Nc3.} Qc7 {[%emt 0:01:12]} 10. Qe2 {[%emt 0:00:35]} cxd4 {[%emt 0:01:32]} 11. cxd4 {[%emt 0:03:03] [#] Black is slightly better.} Nc6 $146 {[%emt 0:00:09]} ({Predecessor:} 11... Bg4 12. Rad1 Bxf3 13. gxf3 Re8 14. Bb3 Nc6 15. Qe4 e5 16. d5 Nd4 17. d6 Qd7 {1-0 (42) Engl,H (2030)-Pleyer,F (1950) Bayern 2002}) 12. c3 {[%emt 0:01:53]} Bg4 {[%emt 0:00:44]} 13. Bd5 {[%emt 0:01:16]} e6 {[%emt 0:01:07][%cal Be7e6,Be6e5][%mdl 32]} 14. Be4 {[%emt 0:02:32]} h6 {[%emt 0:03:03]} 15. Bd2 {[%emt 0:02:41]} e5 {[%emt 0:01:52][%cal Re5d4]} (15... f5 {is interesting.} 16. Bxc6 Qxc6 17. Rfe1 Bxf3 18. Qxf3 Qxf3 19. gxf3 Rae8) 16. h3 {[%emt 0:02:03]} Bxf3 {[%emt 0:00:18]} 17. Qxf3 {[%emt 0:00:02]} exd4 {[%emt 0:00:06]} 18. Bxc6 {[%emt 0:00:08]} (18. Bf4 {keeps more tension.} Qc8 19. Bxc6 Qxc6 20. Qxc6 bxc6 21. cxd4 Rad8 22. Rad1) 18... Qxc6 {[%emt 0:06:02]} 19. Qxc6 {[%emt 0:00:45]} bxc6 {[%emt 0:00:01]} 20. cxd4 {[%emt 0:00:02]} c5 {[%emt 0:01:22]} 21. dxc5 {[%emt 0:05:39] And now Rac1 would win.} Bxa1 {[%emt 0:00:02]} 22. Rxa1 $15 {[%emt 0:00:01][%mdl 4096] Endgame KRR-KRB} g5 {[%emt 0:01:04]} 23. Rc1 {[%emt 0:00:55]} Rac8 {[%emt 0:00:02]} 24. h4 {[%emt 0:01:00]} Rfd8 {[%emt 0:00:45]} 25. Be3 {[%emt 0:00:01]} f6 {[%emt 0:00:03]} 26. hxg5 {[%emt 0:00:13]} ({Wrong is} 26. c6 $2 Rd6 27. c7 Rd7 28. hxg5 hxg5 $19) 26... hxg5 {[%emt 0:00:01]} 27. g4 {[%emt 0:00:02]} ({Don't blunder} 27. c6 $2 Rd6 28. c7 Rd7 $19) (27. Rc4 $142) 27... Rc6 {[%emt 0:00:35]} 28. Kg2 {[%emt 0:00:05]} Kf7 {[%emt 0:00:07]} 29. Rb1 {[%emt 0:00:09]} ({Better is} 29. Rc4) 29... Rc7 {[%emt 0:01:26]} (29... Ra6 $142 30. Rb2 Ra4) 30. Kf3 {[%emt 0:00:18]} Rd3 {[%emt 0:00:14]} 31. Rh1 {[%emt 0:00:39] Hoping for Rh7+.} Kg6 {[%emt 0:00:18] Inhibits Rh7.} (31... Ke6 $19 32. Rc1 Kd5) 32. Rc1 $17 {[%emt 0:00:25]} Ra3 {[%emt 0:00:12]} 33. Rc2 {[%emt 0:00:01]} (33. Ke4 $17) 33... Kf7 $19 {[%emt 0:00:09]} 34. Ke4 {[%emt 0:00:26]} Ke6 {[%emt 0:00:10]} 35. Rd2 {[%emt 0:00:03]} Rc6 {[%emt 0:00:08] Against Rd6+} 36. Rb2 {[%emt 0:00:27]} (36. Rc2 $142) 36... Ra4+ {[%emt 0:00:27]} 37. Kf3 {[%emt 0:00:02]} Rca6 {[%emt 0:00:10]} 38. Rb7 {[%emt 0:00:40]} Rxa2 {[%emt 0:00:05]} 39. c6 {[%emt 0:00:07]} Rxc6 {[%emt 0:02:01]} 40. Bxa7 {[%emt 0:00:02]} (40. Rxa7 Rxa7 41. Bxa7) 40... Ra4 $2 {[%emt 0:00:12]} (40... Rc4 41. Be3 Raa4) 41. Be3 $2 {[%emt 0:00:25]} (41. Rb6 Rxb6 42. Bxb6) 41... Rcc4 {[%emt 0:00:06]} 42. Rb6+ {[%emt 0:00:09]} Kf7 {[%emt 0:00:01]} 43. Rb7+ {[%emt 0:00:13]} Kg6 {[%emt 0:00:02]} 44. Rb6 {[%emt 0:00:09]} Rxg4 {[%emt 0:00:03]} 45. Ke2 {[%emt 0:00:04]} Rgc4 {[%emt 0:00:16]} 46. Kf3 {[%emt 0:00:02]} Rab4 {[%emt 0:00:21]} 47. Rd6 {[%emt 0:00:05]} Rb5 {[%emt 0:00:28]} 48. Kg3 {[%emt 0:00:04]} Re5 {[%emt 0:00:26]} 49. Bd4 {[%emt 0:00:29]} Rf5 {[%emt 0:00:02]} 50. Be3 {[%emt 0:00:12]} Re4 {[%emt 0:00:09]} 51. Bd4 {[%emt 0:00:08]} Kf7 {[%emt 0:00:11] Strongly threatening ...Ke7.} 52. Be3 {[%emt 0:00:13]} Re6 {[%emt 0:00:10]} 53. Rd7+ {[%emt 0:00:05]} Kg6 {[%emt 0:00:01]} 54. Rd8 {[%emt 0:00:07]} Rb5 {[%emt 0:00:10]} 55. Rg8+ {[%emt 0:00:13]} Kf5 {[%emt 0:00:02]} 56. Rd8 {[%emt 0:00:06]} Rb3 {[%emt 0:00:07] Against Rd3} 57. Rd5+ {[%emt 0:00:22]} Re5 {[%emt 0:00:02]} 58. Rd6 {[%emt 0:00:10]} Rbxe3+ {[%emt 0:00:03]} 59. fxe3 {[%emt 0:00:02]} Rxe3+ {[%emt 0:00:01] KR-KR} 60. Kf2 {[%emt 0:00:01]} Ra3 {[%emt 0:00:01]} 61. Rb6 {[%emt 0:00:10]} g4 {[%emt 0:00:03]} 62. Kg2 {[%emt 0:00:24]} Kg5 {[%emt 0:00:02]} 63. Rb5+ {[%emt 0:00:14]} f5 {[%emt 0:00:02]} 64. Rc5 {[%emt 0:00:02]} Rd3 {[%emt 0:00:41]} 65. Ra5 {[%emt 0:00:08]} Re3 {[%emt 0:00:14]} 66. Kf2 {[%emt 0:00:08]} Rd3 {[%emt 0:01:02]} 67. Kg2 $1 {[%emt 0:00:11]} Kf4 {[%emt 0:00:11]} 68. Ra4+ {[%emt 0:00:03]} Ke5 {[%emt 0:00:08]} 69. Ra5+ {[%emt 0:00:21]} Ke4 {[%emt 0:00:27]} 70. Ra8 {[%emt 0:00:13]} Rd5 {[%emt 0:02:47]} 71. Kg3 {[%emt 0:00:10]} Rd3+ {[%emt 0:00:15]} (71... Rc5 $19 72. Re8+ Re5) 72. Kg2 {[%emt 0:00:00]} Kf4 {[%emt 0:00:28]} 73. Ra4+ {[%emt 0:00:02]} Kg5 {[%emt 0:00:02]} 74. Ra5 {[%emt 0:00:02]} Re3 {[%emt 0:00:18]} 75. Kf2 $1 {[%emt 0:00:08]} Re4 {[%emt 0:00:09]} 76. Kg3 {[%emt 0:00:06]} Kf6 {[%emt 0:00:15]} 77. Ra6+ {[%emt 0:00:34]} Re6 {[%emt 0:00:09]} 78. Ra5 {[%emt 0:00:01]} Re3+ {[%emt 0:00:07]} 79. Kg2 {[%emt 0:00:04]} f4 {[%emt 0:00:10]} 80. Kf2 {[%emt 0:00:17]} Re5 {[%emt 0:00:02]} 81. Ra8 {[%emt 0:00:05]} Kf5 {[%emt 0:00:01]} 82. Rf8+ {[%emt 0:00:15]} Ke4 {[%emt 0:00:01]} 83. Rg8 {[%emt 0:00:10]} g3+ {[%emt 0:00:40]} 84. Kg2 {[%emt 0:00:01]} Ke3 {[%emt 0:00:05]} 85. Ra8 {[%emt 0:00:12]} Ke4 $2 {[%emt 0:00:32]} (85... Re6 {mates} 86. Rf8 Ke4 87. Rh8 Kf5 88. Rf8+ Kg5 89. Rb8 Kf5 90. Kf1 Re3 91. Rg8 Ra3 92. Ke2 f3+ 93. Kd1 g2 94. Kc2 f2 95. Rf8+ Ke6 96. Re8+ Kf7 97. Rb8 f1=Q 98. Rb7+ Ke6 99. Rb6+ Kd5 100. Rd6+ Kxd6 101. Kb2 Qa1+ 102. Kc2 Qa2+ 103. Kd1 g1=Q#) 86. Rb8 $2 {[%emt 0:00:22][%mdl 8192]} (86. Rg8 $11 Rb5 87. Re8+ Kf5 88. Rf8+ Kg4 89. Rg8+ Rg5 90. Rb8 f3+ 91. Kf1 Ra5 92. Rg8+ Kf4 93. Rf8+ Ke4 94. Re8+ Kd5 95. Rd8+ Ke6 96. Ke1 Ra1+ 97. Kd2 f2 98. Re8+ Kf7 99. Rh8 f1=Q 100. Rh7+ Kg6 101. Re7 Qd1+ 102. Kc3 Rc1+ 103. Kb2 Qc2+ 104. Ka3 Ra1+ 105. Kb4 Rb1+ 106. Ka5 Qa2#) 86... Rc5 {[%emt 0:00:12]} (86... Rd5 $142 87. Re8+ Kf5 88. Kh3 Rd1 89. Rf8+ Ke4 90. Kg4 g2 91. Re8+ Kd3 92. Kf5 g1=Q 93. Re5 f3 94. Re6 Qc5+ 95. Re5 Kd4 $1 96. Rxc5 Kxc5 97. Kg4 f2 98. Kg5 f1=Q 99. Kg4 Rd3 100. Kh4 Qg2 101. Kh5 Rh3#) 87. Re8+ {[%emt 0:00:05]} Re5 $2 {[%emt 0:00:01]} ({Black should try} 87... Kd3 $1 $19 {( -> ...Rc2+)} 88. Kf3 Rc1 89. Rd8+ Kc3 90. Rc8+ Kd2 91. Rd8+ Ke1) 88. Ra8 $2 {[%emt 0:00:01][%mdl 8192]} (88. Rg8 $11 Rc5 89. Re8+ Kf5 90. Kh3) 88... Kf5 {[%emt 0:00:09] Black mates.} 89. Rf8+ {[%emt 0:00:34] [#]} Kg4 $1 {[%emt 0:00:04]} 90. Rg8+ {[%emt 0:00:02] [#]} Rg5 $1 {[%emt 0:00:07]} 91. Rf8 {[%emt 0:00:02]} Rg7 {[%emt 0:00:02]} 92. Rf6 {[%emt 0:00:15]} Rc7 {[%emt 0:00:05]} 93. Rg6+ {[%emt 0:00:17]} Kf5 {[%emt 0:00:02]} 94. Rg8 {[%emt 0:00:15]} Rc2+ {[%emt 0:00:01]} 95. Kg1 {[%emt 0:00:01]} Ke4 {[%emt 0:00:01]} 96. Ra8 {[%emt 0:00:20]} Kf3 {[%emt 0:00:30][%cal Rc2c1]} 97. Ra3+ {[%emt 0:00:04]} Kg4 {[%emt 0:00:01]} 98. Ra1 {[%emt 0:00:18]} Kh3 {[%emt 0:00:25]} 99. Rf1 {[%emt 0:00:10]} f3 {[%emt 0:00:04][%cal Bf4f3,Bf3f2][%mdl 32]} 100. Rd1 {[%emt 0:00:11]} f2+ {[%emt 0:00:04] Weighted Error Value: White=0.35/Black=0.19 (very precise)} 0-1

[Event "Chinese League Div-A Rapid 2022"]
[Site "Fuling,Chongqing"]
[Date "2022.09.11"]
[Round "5.14"]
[White "Sun, Fanghui"]
[Black "Zhu, Jiner"]
[Result "0-1"]
[ECO "C78"]
[WhiteElo "2182"]
[BlackElo "2464"]
[Annotator "TA"]
[PlyCount "82"]
[EventDate "2022.09.07"]
[EventType "team-tourn"]
[EventCountry "CHN"]
[SourceTitle "playchess.com"]
[Source "ChessBase"]
[SourceQuality "1"]
[TimeControl "1500+10"]

{[%evp 11,82,16,28,11,11,11,6,8,8,2,2,-7,14,12,15,8,11,0,0,0,0,0,0,0,0,0,0,0,0,-25,-30,-74,-43,-37,-46,-155,-73,-293,-281,-1188,-159,-151,-152,-405,-389,-516,-525,-518,-516,-514,-505,-533,-457,-457,-451,-448,-410,-432,-343,-341,0,-426,0,-335,-325,-307,-315,-303,-237,-526,-268,-494,-504]} 1. e4 {[%emt 0:00:03]} e5 {[%emt 0:00:02]} 2. Nf3 {[%emt 0:00:02]} Nc6 {[%emt 0:00:04]} 3. Bb5 {[%emt 0:00:03]} a6 {[%emt 0:00:03]} 4. Ba4 {[%emt 0:00:02]} Nf6 {[%emt 0:00:02]} 5. O-O {[%emt 0:00:03]} Bc5 {[%emt 0:00:03]} 6. Bxc6 {[%emt 0:01:47]} dxc6 {[%emt 0:01:22]} (6... bxc6 7. Nxe5 Nxe4 8. Qe2 $16 (8. Qf3 Ng5 $11)) 7. Nxe5 {[%emt 0:00:20] C78: Ruy Lopez: Archangelsk and Möller Defences.} Nxe4 {[%emt 0:02:46]} 8. Qe2 {[%emt 0:05:13]} Qd5 {[%emt 0:00:09]} 9. Nd3 {[%emt 0:01:14] Hoping for Nc3. The position is equal.} O-O {[%emt 0:01:14]} 10. Nxc5 {[%emt 0:00:04]} Nxc5 {[%emt 0:00:04]} 11. Nc3 {[%emt 0:00:07]} Qf5 {[%emt 0:01:17]} 12. d3 {[%emt 0:03:46]} Ne6 {[%emt 0:00:12]} 13. Be3 {[%emt 0:00:16]} c5 {[%emt 0:00:15] [#]} 14. Qd2 $146 {[%emt 0:00:13]} ({Predecessor:} 14. f3 b6 15. Qf2 Bb7 16. a3 Qh5 17. b4 f5 18. f4 Rf6 19. bxc5 Rg6 20. g3 bxc5 {1-0 (41) Anagnostopoulos,D (2456)-Sahl,B (2406) Port Erin 1999}) 14... b6 {[%emt 0:00:14]} 15. Ne2 {[%emt 0:02:44]} Rd8 {[%emt 0:02:53]} 16. f4 {[%emt 0:00:49]} f6 {[%emt 0:02:16]} 17. Ng3 {[%emt 0:01:41]} Qd5 {[%emt 0:00:03]} 18. f5 {[%emt 0:00:22]} Nd4 {[%emt 0:00:06]} 19. Qf2 {[%emt 0:00:06]} Bb7 {[%emt 0:00:35][%cal Od5g2]} 20. c3 {[%emt 0:02:08]} Nc6 {[%emt 0:00:50]} 21. Nh5 {[%emt 0:00:06]} Kh8 {[%emt 0:02:33]} 22. Qg3 {[%emt 0:00:09][%csl Gh5][%cal Rg3g7]} Rd7 {[%emt 0:00:17]} 23. Rf4 {[%emt 0:00:44]} (23. Qh3 $15) 23... Ne5 {[%emt 0:02:50]} ({Better is} 23... Qxd3 {And now ...Qe2 would win.} 24. Raf1 Re8) 24. Rh4 $2 {[%emt 0:00:54]} (24. d4 $17 Nc4 25. dxc5) 24... Qxd3 $19 {[%emt 0:01:39]} 25. Qh3 {[%emt 0:00:59] [#]} (25. Rf1) 25... Nc4 $2 {[%emt 0:00:34]} (25... Nf3+ $1 $19 {[%mdl 512] is more deadly.} 26. gxf3 Qxe3+ 27. Kf1 Rad8) 26. Re1 $17 {[%emt 0:02:52]} Nxe3 {[%emt 0:00:21] Black is more active.} (26... Nxb2 $2 27. Nf4 h6 28. Nxd3 $18) 27. Nf4 $2 {[%emt 0:02:04] [#]} (27. Qxe3 $17 Qxe3+ 28. Rxe3) 27... Qxf5 $1 $19 {[%emt 0:00:47]} 28. Qxe3 {[%emt 0:00:15][%cal Oe3e8] White wants to mate with Qe8+!} (28. Rxe3 Qb1+) 28... g5 {[%emt 0:02:38][%csl LRf4,LRh4]} 29. Nh5 {[%emt 0:00:02][%cal Oe3e8] Intending Qe8+! and mate.} Qg6 {[%emt 0:00:07] Inhibits Qe8+.} (29... gxh4 $2 30. Qe8+ $3 {[%mdl 512]} Rxe8 31. Rxe8#) 30. Rh3 {[%emt 0:00:11]} Rad8 {[%emt 0:00:44]} (30... Qc2 $2 {[#]} 31. Qe8+ $3 {[%mdl 512]} Rxe8 32. Rxe8#) 31. Qe6 {[%emt 0:00:27]} Rd2 {[%emt 0:01:24]} 32. Rg3 {[%emt 0:00:29]} R2d6 {[%emt 0:00:04]} 33. Qe2 {[%emt 0:00:03]} Bc6 {[%emt 0:00:19] Threatens to win with ...Re8.} ({Not} 33... Rd2 $2 34. Qe7 Rd1 35. Nf4 Rxe1+ 36. Qxe1 $19) 34. Nf4 {[%emt 0:00:06]} Qf5 {[%emt 0:00:35]} 35. Nh5 {[%emt 0:00:13]} Qg6 {[%emt 0:00:46] Strongly threatening ...Re8.} ({Wrong is} 35... Rd2 $2 36. Qf1 Qxf1+ 37. Rxf1) 36. Nf4 $1 {[%emt 0:00:05]} Qf5 {[%emt 0:00:12]} 37. Nh5 $1 {[%emt 0:00:02]} Rd2 {[%emt 0:00:02]} 38. Qf1 {[%emt 0:00:20]} Qxf1+ {[%emt 0:00:19]} 39. Rxf1 {[%emt 0:00:02]} Rd1 {[%emt 0:00:08]} ({Don't blunder} 39... Rxb2 $2 40. h3 $19) 40. Nxf6 {[%emt 0:00:06]} (40. b3) 40... Rxf1+ {[%emt 0:00:03]} 41. Kxf1 {[%emt 0:00:02]} Rf8 {[%emt 0:00:06] Weighted Error Value: White=0.54/Black=0.52} 0-1